bitfinex/quotes_SOLUSD_20251218
["timestamp","ask_amount","ask_price","bid_price","bid_amount"]
[1766029135890,8.78465044,123.54,123.51,0.68]
[1766029137488,0.69,123.54,123.51,0.68]
[1766029138290,8.78460938,123.54,123.51,0.68]
[1766029140575,10.80499861,123.54,123.51,0.68]
[1766029140900,2.02038923,123.53,123.49,0.68]
[1766029141101,0.69,123.51,123.48,8.88]
[1766029141388,0.69,123.51,123.49,0.68]
[1766029141795,0.69,123.52,123.49,0.68]
[1766029142397,8.78587765,123.52,123.49,0.68]
[1766029143698,0.69,123.51,123.49,0.68]
[1766029143896,11.24961028,123.52,123.49,0.68]
[1766029144100,3.84373263,123.52,123.49,0.68]
[1766029146103,0.69,123.52,123.49,0.68]
[1766029146272,11.93961231,123.52,123.49,0.68]
[1766029147586,8.09519954,123.53,123.49,0.68]
[1766029147903,0.69,123.51,123.47,30.57025835]
[1766029148204,0.69,123.51,123.48,0.68]
[1766029149703,0.69,123.5,123.46,8.77949375]
[1766029149885,3.15478005,123.5,123.46,8.77949375]
[1766029150079,3.84478005,123.49,123.46,0.68]
[1766029150696,0.69,123.49,123.46,0.68]
[1766029151897,8.75790099,123.49,123.46,0.68]
[1766029157605,0.66,123.49,123.46,8.09967416]
[1766029157914,0.66,123.5,123.47,0.71]
[1766029159719,0.66,123.49,123.45,9.59]
[1766029159922,0.66,123.48,123.45,9.59]
[1766029160089,0.66,123.48,123.45,8.88]
[1766029160391,0.66,123.48,123.46,0.71]
[1766029161200,0.66,123.5,123.47,0.71]
[1766029161401,0.66,123.5,123.48,0.71]
[1766029161719,19.19449561,123.51,123.48,0.71]
[1766029162212,0.66,123.51,123.49,0.71]
[1766029165603,0.66,123.51,123.47,3.15478005]
[1766029165791,0.66,123.5,123.46,8.88]
[1766029165994,3.81478005,123.5,123.47,0.71]
[1766029166916,11.91205664,123.5,123.47,0.71]
[1766029167422,0.66,123.49,123.46,0.71]
[1766029167611,0.66,123.49,123.46,9.59]
[1766029167811,8.09689676,123.51,123.47,0.71]
[1766029168115,0.66,123.5,123.47,0.71]
[1766029169396,11.25167681,123.51,123.47,0.71]
[1766029169593,11.91167681,123.51,123.47,0.71]
[1766029169796,8.75689676,123.51,123.47,3.15478005]
[1766029169994,8.75689676,123.51,123.48,0.71]
[1766029170530,0.66,123.51,123.48,0.71]
[1766029170715,11.91089785,123.52,123.48,0.71]
[1766029170921,8.7561178,123.52,123.48,3.15478005]
[1766029171106,8.7561178,123.52,123.49,0.71]
[1766029171626,0.66,123.51,123.49,0.71]
[1766029172712,21.68794236,123.53,123.49,0.71]
[1766029172912,0.66,123.52,123.49,0.71]
[1766029175306,0.66,123.51,123.49,0.71]
[1766029176420,0.66,123.51,123.48,0.71]
[1766029176812,11.25065331,123.52,123.48,0.71]
[1766029177044,0.66,123.52,123.49,0.71]
[1766029177229,0.66,123.52,123.5,0.71]
[1766029177422,0.66,123.52,123.49,3.86478005]
[1766029178327,8.75590111,123.52,123.49,0.71]
[1766029178534,0.66,123.51,123.49,0.71]
[1766029179206,8.95847184,123.56,123.51,0.71]
[1766029179509,8.95847184,123.56,123.53,0.71]
[1766029179510,0.86,123.56,123.53,0.71]
[1766029179832,0.86,123.56,123.53,3.86478005]
[1766029180213,8.95328005,123.56,123.53,3.86478005]
[1766029180813,8.95328005,123.56,123.53,3.15478005]
[1766029181130,8.95328005,123.56,123.53,0.71]
[1766029181308,8.95328005,123.56,123.53,3.86478005]
[1766029182037,8.29328005,123.56,123.53,3.15478005]
[1766029182332,0.2,123.56,123.55,0.68]
[1766029182734,0.2,123.57,123.56,0.68]
[1766029183226,0.2,123.57,123.55,3.15478005]
[1766029183227,0.2,123.57,123.55,3.83478005]
[1766029185108,0.2,123.57,123.56,3.15478005]
[1766029185313,0.2,123.58,123.57,0.68]
[1766029185917,0.2,123.58,123.56,3.15478005]
[1766029186228,0.2,123.58,123.56,0.68]
[1766029186433,0.2,123.58,123.56,3.83478005]
[1766029188435,0.2,123.58,123.56,3.15478005]
[1766029188624,0.71,123.6,123.57,3.15478005]
[1766029188932,0.71,123.6,123.57,3.83478005]
[1766029189513,0.71,123.59,123.55,8.77359655]
[1766029189714,0.71,123.59,123.57,3.15478005]
[1766029189930,0.71,123.58,123.55,9.56]
[1766029190128,0.71,123.58,123.55,12.71478005]
[1766029192420,0.71,123.57,123.52,18.53296952]
[1766029192737,0.71,123.57,123.54,3.83478005]
[1766029198845,0.71,123.56,123.53,20.80991758]
[1766029199023,8.0925975,123.57,123.54,0.68]
[1766029199222,0.71,123.56,123.54,0.68]
[1766029199937,0.71,123.56,123.54,3.83478005]
[1766029200742,0.71,123.57,123.52,18.53324818]
[1766029200949,0.71,123.57,123.53,12.71478005]
[1766029201939,0.71,123.56,123.53,12.71478005]
[1766029205454,0.71,123.56,123.53,11.57663701]
[1766029205830,0.71,123.58,123.55,0.68]
[1766029206345,0.71,123.58,123.54,2.01663701]
[1766029206545,0.71,123.58,123.54,2.69663701]
[1766029206940,0.71,123.56,123.52,10.79219231]
[1766029207149,0.71,123.56,123.52,17.6555553]
[1766029207347,0.71,123.55,123.52,17.6555553]
[1766029207522,0.71,123.55,123.52,19.67219231]
[1766029207726,0.71,123.55,123.51,0.68]
[1766029208050,0.71,123.54,123.5,11.57663701]
[1766029208247,0.71,123.53,123.49,10.79400859]
[1766029208419,0.71,123.53,123.5,9.56]
[1766029208625,0.71,123.53,123.5,8.88]
[1766029209040,0.71,123.53,123.5,9.56]
[1766029209753,0.71,123.54,123.51,0.68]
[1766029210848,18.53117965,123.56,123.51,10.11301311]
[1766029211048,10.43767296,123.56,123.54,0.68]
[1766029211250,0.71,123.57,123.54,2.69663701]
[1766029217237,0.71,123.57,123.54,0.68]
[1766029218560,0.71,123.57,123.54,2.69655116]
[1766029218762,0.71,123.57,123.54,0.68]
[1766029219261,0.7,123.56,123.51,0.69]
[1766029219454,0.7,123.56,123.52,11.58655116]
[1766029219642,0.7,123.55,123.52,9.57]
[1766029219841,0.7,123.55,123.52,11.58655116]
[1766029220362,0.7,123.55,123.53,0.69]
[1766029222081,0.7,123.58,123.55,0.69]
[1766029222270,0.7,123.58,123.55,2.01655116]
[1766029222760,0.7,123.58,123.55,0.69]
[1766029223071,0.7,123.58,123.54,2.70655116]
[1766029223265,0.7,123.57,123.54,2.70655116]
[1766029223842,0.7,123.57,123.54,2.01655116]
[1766029224044,0.7,123.57,123.54,2.70655116]
[1766029224660,8.09200217,123.58,123.54,2.01655116]
[1766029224861,0.7,123.57,123.54,2.70655116]
[1766029225469,0.7,123.57,123.54,10.8010862]
[1766029225666,0.7,123.6,123.57,0.69]
[1766029225876,0.7,123.6,123.58,2.70655116]
[1766029226069,10.43767296,123.59,123.58,2.01655116]
[1766029226373,0.7,123.6,123.58,2.70655116]
[1766029226578,0.9,123.61,123.59,2.01655116]
[1766029227761,0.9,123.61,123.58,2.70655116]
[1766029227948,0.7,123.6,123.58,2.70655116]
[1766029228551,0.9,123.61,123.58,2.70655116]
[1766029229878,0.7,123.6,123.58,2.70655116]
[1766029230057,0.7,123.6,123.58,2.01655116]
[1766029230385,0.7,123.6,123.58,2.70655116]
[1766029230558,0.2,123.61,123.58,2.70655116]
[1766029230749,0.9,123.61,123.58,2.70655116]
[1766029234866,0.2,123.61,123.59,2.70655116]
[1766029235288,0.9,123.61,123.59,2.70655116]
[1766029235494,0.9,123.61,123.58,19.67837157]
[1766029237460,0.2,123.61,123.59,0.69]
[1766029237663,0.2,123.61,123.59,2.01655116]
[1766029237890,0.2,123.61,123.59,2.70655116]
[1766029238204,10.63767296,123.62,123.6,0.69]
[1766029238887,11.33767296,123.62,123.59,0.69]
[1766029239691,19.42701712,123.62,123.59,0.69]
[1766029239900,0.7,123.61,123.58,9.57]
[1766029240094,0.7,123.61,123.58,8.88]
[1766029240295,0.7,123.61,123.59,0.69]
[1766029241496,0.7,123.61,123.58,9.57]
[1766029242109,0.66,123.6,123.57,8.88]
[1766029242271,0.66,123.6,123.53,71.148453]
[1766029242272,0.66,123.59,123.56,8.88]
[1766029242783,0.66,123.59,123.56,9.58]
[1766029243598,0.66,123.59,123.56,11.59655116]
[1766029244495,8.75072131,123.6,123.57,0.7]
[1766029245595,10.43767296,123.59,123.57,2.71655116]
[1766029246176,9.71767296,123.59,123.57,2.01655116]
[1766029246401,0.86,123.62,123.58,2.01655116]
[1766029246697,0.86,123.62,123.59,10.89655116]
[1766029246877,0.66,123.61,123.59,10.89655116]
[1766029247601,0.2,123.62,123.6,2.01655116]
[1766029248408,0.2,123.64,123.63,2.01655116]
[1766029248619,22.43075018,123.68,123.63,10.89655116]
[1766029248913,20.41419902,123.68,123.64,2.01655116]
[1766029249420,8.08625225,123.67,123.64,2.01655116]
[1766029249598,0.66,123.66,123.64,2.01655116]
[1766029250397,10.43767296,123.65,123.64,2.01655116]
[1766029250619,0.66,123.66,123.64,2.01655116]
[1766029251797,0.66,123.66,123.63,10.89655116]
[1766029252995,0.66,123.65,123.62,8.88]
[1766029254214,0.66,123.65,123.62,2.01655116]
[1766029255416,0.66,123.65,123.63,2.01655116]
[1766029255597,0.66,123.66,123.63,2.01655116]
[1766029256617,0.66,123.65,123.63,2.01655116]
[1766029257296,0.66,123.65,123.62,2.01655116]
[1766029260487,0.66,123.64,123.61,8.88]
[1766029261016,2.01655116,123.63,123.58,2.01655116]
[1766029261193,0.66,123.62,123.58,10.89655116]
[1766029261393,0.66,123.62,123.58,18.98812003]
[1766029261708,0.66,123.62,123.59,2.01655116]
[1766029262017,0.66,123.62,123.58,18.98812003]
[1766029262209,0.66,123.61,123.57,2.01655116]
[1766029262416,2.01655116,123.6,123.56,8.88]
[1766029262610,0.66,123.59,123.56,8.88]
[1766029263318,2.01655116,123.59,123.56,8.88]
[1766029263527,0.66,123.58,123.56,8.88]
[1766029264028,0.66,123.57,123.54,2.01655116]
[1766029265410,0.66,123.57,123.54,3.15062278]
[1766029265822,0.66,123.57,123.53,16.97469441]
[1766029266010,0.66,123.57,123.54,3.15062278]
[1766029268137,0.66,123.57,123.56,3.15062278]
[1766029268307,18.52922419,123.59,123.56,3.15062278]
[1766029268308,0.66,123.58,123.56,3.15062278]
[1766029268708,0.66,123.58,123.54,8.09440193]
[1766029268709,0.66,123.58,123.55,3.15062278]
[1766029269210,11.09767296,123.59,123.56,3.15062278]
[1766029269641,0.66,123.59,123.56,3.15062278]
[1766029269909,13.58829574,123.61,123.58,3.15062278]
[1766029269910,8.75021031,123.61,123.58,3.15062278]
[1766029270117,0.66,123.6,123.58,3.15062278]
[1766029270341,0.66,123.6,123.57,3.15062278]
[1766029271007,0.66,123.6,123.58,3.15062278]
[1766029271413,0.72,123.61,123.58,3.15062278]
[1766029272336,0.72,123.62,123.59,12.03062278]
[1766029272510,18.52661102,123.63,123.59,12.03062278]
[1766029272716,23.37152162,123.64,123.62,3.15062278]
[1766029272717,0.72,123.64,123.62,3.15062278]
[1766029273219,0.72,123.64,123.61,3.15062278]
[1766029273426,0.72,123.64,123.6,8.80994492]
[1766029273427,0.72,123.65,123.62,3.15062278]
[1766029273627,0.72,123.65,123.62,12.03062278]
[1766029275139,0.72,123.65,123.62,20.11978529]
[1766029277010,0.72,123.65,123.62,16.96916251]
[1766029277211,0.72,123.65,123.62,20.11978529]
[1766029278448,0.72,123.66,123.63,3.15062278]
[1766029278630,0.72,123.66,123.62,20.11978529]
[1766029279748,0.72,123.66,123.62,16.96916251]
[1766029279953,0.72,123.66,123.62,20.11978529]
[1766029281355,0.72,123.64,123.59,32.91641595]
[1766029281559,0.72,123.63,123.59,41.79641595]
[1766029281941,0.72,123.63,123.59,20.12180074]
[1766029282735,0.72,123.62,123.58,11.2422893]
[1766029282932,0.72,123.62,123.59,8.88]
[1766029283435,0.72,123.61,123.59,8.88]
[1766029283735,0.72,123.61,123.57,30.5589406]
[1766029284148,0.72,123.61,123.57,21.6789406]
[1766029284355,0.72,123.6,123.57,8.88]
[1766029284554,0.72,123.6,123.57,12.02886585]
[1766029288059,0.72,123.6,123.57,8.88]
[1766029288258,0.72,123.6,123.57,12.02886585]
[1766029290162,0.72,123.61,123.58,3.14886585]
[1766029290558,0.72,123.62,123.59,3.14886585]
[1766029290760,0.72,123.63,123.6,12.02886585]
[1766029291264,0.72,123.65,123.62,3.14886585]
[1766029291767,0.72,123.65,123.61,3.14886585]
[1766029292459,0.72,123.65,123.61,11.23861141]
[1766029293959,0.72,123.65,123.62,3.14886585]
[1766029295061,0.72,123.65,123.61,11.23861141]
[1766029296361,0.72,123.65,123.62,3.14886585]
[1766029300041,0.72,123.66,123.62,8.08894876]
[1766029300246,0.72,123.66,123.63,3.14886585]
[1766029300664,0.72,123.66,123.62,8.08894876]
[1766029300850,0.72,123.66,123.63,3.14886585]
[1766029301053,8.08604511,123.67,123.65,3.14886585]
[1766029301054,0.72,123.67,123.65,3.14886585]
[1766029302183,0.72,123.67,123.63,37.19024204]
[1766029302354,0.72,123.67,123.65,3.14886585]
[1766029303575,0.72,123.67,123.64,3.14886585]
[1766029304273,0.72,123.67,123.64,12.02886585]
[1766029304879,0.72,123.67,123.64,8.88]
[1766029305574,8.08611484,123.67,123.62,8.08908342]
[1766029305762,0.67,123.65,123.62,8.88]
[1766029305955,0.67,123.65,123.62,12.02886585]
[1766029306463,0.67,123.65,123.62,20.11808388]
[1766029306868,0.67,123.65,123.62,12.02886585]
[1766029307673,0.67,123.65,123.62,3.14886585]
[1766029307882,0.67,123.65,123.62,12.02886585]
[1766029308066,0.67,123.65,123.62,3.14886585]
[1766029308377,0.67,123.64,123.6,20.11940456]
[1766029312080,0.67,123.63,123.6,20.11940456]
[1766029312679,0.67,123.63,123.61,3.14886585]
[1766029312975,21.6733038,123.66,123.62,3.14886585]
[1766029313277,21.6733038,123.66,123.63,3.14886585]
[1766029313278,0.67,123.65,123.63,3.14886585]
[1766029313462,16.96638756,123.67,123.63,20.11741676]
[1766029313655,0.67,123.66,123.63,20.11741676]
[1766029313861,0.67,123.67,123.65,3.14886585]
[1766029314181,0.2,123.68,123.66,3.14886585]
[1766029314478,0.87,123.68,123.66,3.14886585]
[1766029314685,0.87,123.68,123.65,3.14886585]
[1766029315375,0.87,123.68,123.65,11.2357978]
[1766029315581,0.67,123.67,123.65,8.08693195]
[1766029319478,0.67,123.66,123.63,8.08865162]
[1766029319675,0.67,123.66,123.64,8.88]
[1766029322891,3.81886585,123.65,123.62,8.08924191]
[1766029323190,3.81886585,123.65,123.62,16.96924191]
[1766029323393,0.67,123.65,123.62,16.96924191]
[1766029323594,3.81886585,123.64,123.59,3.14886585]
[1766029323779,0.67,123.63,123.6,16.97061488]
[1766029324088,0.67,123.62,123.6,8.88]
[1766029325799,0.67,123.62,123.6,16.97058392]
[1766029330385,0.67,123.62,123.59,28.31886386]
[1766029330562,0.67,123.62,123.6,8.88]
[1766029331594,2.0145785,123.63,123.6,8.88]
[1766029331783,8.08698728,123.66,123.6,8.88]
[1766029331968,2.0145785,123.64,123.6,8.88]
[1766029332488,2.0145785,123.64,123.6,16.97015239]
[1766029333800,0.71,123.63,123.6,16.97015239]
[1766029335905,0.71,123.63,123.6,8.09015239]
[1766029336079,0.71,123.63,123.6,16.97015239]
[1766029336598,0.71,123.62,123.6,16.97015239]
[1766029341899,0.71,123.62,123.6,16.47015239]
[1766029342606,2.0145785,123.64,123.61,0.71]
[1766029342906,2.0145785,123.64,123.6,17.18015239]
[1766029344590,0.71,123.63,123.6,17.18015239]
[1766029345598,0.71,123.62,123.6,17.18015239]
[1766029348096,0.71,123.64,123.61,8.79968283]
[1766029348805,0.71,123.64,123.62,0.71]
[1766029349191,0.71,123.64,123.62,9.59]
[1766029349399,0.71,123.65,123.62,9.59]
[1766029350080,0.71,123.65,123.62,17.67906653]
[1766029356010,0.71,123.67,123.63,0.71]
[1766029356181,0.2,123.69,123.63,0.71]
[1766029356182,8.28502415,123.69,123.64,0.71]
[1766029356503,2.92398051,123.68,123.64,0.71]
[1766029357505,2.21398051,123.68,123.64,0.71]
[1766029357693,0.71,123.67,123.64,0.71]
[1766029358005,0.71,123.67,123.64,8.79768689]
[1766029358205,2.72398051,123.67,123.64,8.79768689]
[1766029358776,0.71,123.67,123.64,8.08768689]
[1766029359008,0.71,123.67,123.64,8.79768689]
[1766029360011,2.72398051,123.67,123.64,8.79768689]
[1766029360893,0.71,123.66,123.64,8.79768689]
[1766029362201,0.68,123.64,123.62,8.08901378]
[1766029362400,2.69398051,123.64,123.62,8.08901378]
[1766029362602,2.69398051,123.64,123.62,8.80901378]
[1766029362782,2.69398051,123.64,123.62,8.08901378]
[1766029362983,0.68,123.64,123.62,8.80901378]
[1766029366187,0.68,123.66,123.62,8.80901378]
[1766029366406,0.68,123.65,123.62,8.80901378]
[1766029368514,0.68,123.65,123.61,16.96966088]
[1766029368812,0.68,123.64,123.61,17.68966088]
[1766029369014,0.68,123.64,123.61,16.96966088]
[1766029369218,0.68,123.64,123.62,0.72]
[1766029371211,0.68,123.64,123.62,8.8092109]
[1766029371414,0.68,123.65,123.62,8.8092109]
[1766029375219,0.68,123.64,123.62,8.8092109]
[1766029375606,0.68,123.64,123.62,0.72]
[1766029377428,0.68,123.64,123.61,17.68963981]
[1766029377799,0.68,123.64,123.62,0.72]
[1766029380711,0.68,123.64,123.62,8.80926936]
[1766029381420,0.68,123.64,123.62,0.72]
[1766029381933,0.68,123.64,123.61,16.96969485]
[1766029382241,0.68,123.64,123.62,0.72]
[1766029384520,0.68,123.63,123.61,8.88]
[1766029384716,0.68,123.63,123.61,9.6]
[1766029386016,10.1017615,123.65,123.61,9.6]
[1766029386327,0.68,123.64,123.61,17.6899563]
[1766029386529,0.68,123.64,123.61,16.9699563]
[1766029386734,0.68,123.64,123.62,0.72]
[1766029387431,0.68,123.64,123.61,16.9699563]
[1766029387630,0.68,123.64,123.61,17.6899563]
[1766029387820,0.68,123.64,123.62,0.72]
[1766029388221,0.68,123.65,123.63,0.72]
[1766029388519,0.68,123.65,123.62,8.80917364]
[1766029389714,3.14710035,123.67,123.62,8.08917364]
[1766029389915,0.68,123.66,123.63,0.72]
[1766029392636,0.68,123.66,123.63,8.80846047]
[1766029393339,0.68,123.66,123.64,0.68]
[1766029396518,0.68,123.66,123.63,8.08846047]
[1766029396816,0.68,123.66,123.63,8.76846047]
[1766029397250,0.68,123.66,123.63,0.68]
[1766029399440,0.68,123.66,123.63,8.76854148]
[1766029399637,3.80710035,123.67,123.64,0.71]
[1766029399936,11.43273914,123.68,123.64,0.71]
[1766029400133,0.66,123.67,123.64,0.71]
[1766029400331,0.86,123.68,123.65,0.71]
[1766029400745,8.94538563,123.68,123.65,0.71]
[1766029400948,0.66,123.67,123.65,0.71]
[1766029407159,8.74609045,123.67,123.65,0.71]
[1766029407963,0.66,123.66,123.63,0.71]
[1766029408130,0.66,123.66,123.64,0.71]
[1766029409745,3.80710035,123.67,123.64,0.71]
[1766029409951,0.66,123.66,123.64,0.71]
[1766029410134,0.66,123.66,123.63,0.71]
[1766029410745,0.66,123.65,123.62,0.71]
[1766029411052,0.66,123.65,123.63,0.71]
[1766029414256,8.08643903,123.67,123.63,0.71]
[1766029414446,0.66,123.66,123.63,3.85710035]
[1766029415257,0.66,123.66,123.64,0.7]
[1766029416853,0.66,123.66,123.63,3.84710035]
[1766029417055,0.66,123.66,123.63,0.7]
[1766029417753,0.66,123.66,123.62,8.08899397]
[1766029418062,3.83727873,123.64,123.61,0.7]
[1766029418264,0.69,123.64,123.61,0.7]
[1766029419139,3.14727873,123.64,123.61,0.7]
[1766029419342,3.14727873,123.64,123.6,16.9702701]
[1766029419343,0.69,123.62,123.6,0.7]
[1766029419534,0.69,123.62,123.59,9.58]
[1766029419843,0.69,123.62,123.6,0.7]
[1766029420354,3.83727873,123.63,123.6,0.7]
[1766029420738,0.69,123.63,123.6,0.7]
[1766029421068,11.92593886,123.63,123.6,0.7]
[1766029421770,0.69,123.63,123.6,0.7]
[1766029423471,0.69,123.63,123.59,16.97124367]
[1766029423680,3.14727873,123.62,123.58,8.09162194]
[1766029423861,3.14727873,123.59,123.55,0.68]
[1766029424037,0.67,123.58,123.55,9.56]
[1766029424241,0.67,123.57,123.55,8.88]
[1766029424455,0.67,123.57,123.54,17.65454427]
[1766029424653,0.67,123.57,123.54,16.97454427]
[1766029424945,0.67,123.57,123.55,0.68]
[1766029425147,8.0913095,123.59,123.52,8.88]
[1766029425148,0.67,123.55,123.52,8.88]
[1766029425471,0.67,123.55,123.53,0.68]
[1766029425647,0.67,123.55,123.53,8.7751751]
[1766029425852,0.67,123.55,123.52,17.65567736]
[1766029426248,3.14727873,123.58,123.54,0.68]
[1766029426550,0.67,123.58,123.55,0.68]
[1766029427750,3.14727873,123.58,123.55,0.68]
[1766029427968,0.67,123.57,123.55,0.68]
[1766029428343,0.67,123.58,123.55,0.68]
[1766029432368,0.67,123.57,123.55,0.68]
[1766029432562,0.67,123.56,123.53,8.77497454]
[1766029433364,0.67,123.56,123.53,8.09497454]
[1766029433560,0.67,123.56,123.54,0.68]
[1766029436249,0.67,123.57,123.54,0.68]
[1766029436452,0.67,123.56,123.52,20.12283546]
[1766029436779,0.67,123.55,123.52,9.56]
[1766029437067,0.67,123.55,123.53,0.68]
[1766029443186,0.67,123.55,123.52,9.56]
[1766029443364,0.67,123.55,123.52,8.88]
[1766029443365,0.67,123.53,123.52,8.88]
[1766029445692,0.67,123.55,123.53,0.68]
[1766029448683,0.67,123.55,123.52,20.80311646]
[1766029448882,0.67,123.55,123.52,17.65583773]
[1766029449564,0.67,123.55,123.52,0.68]
[1766029449765,0.67,123.55,123.52,9.56]
[1766029450575,0.67,123.55,123.52,8.88]
[1766029450782,0.67,123.55,123.52,9.56]
[1766029451531,0.66,123.54,123.52,9.56]
[1766029452029,0.68,123.53,123.52,8.88]
[1766029452524,0.68,123.53,123.51,0.72]
[1766029452928,0.68,123.53,123.5,9.8]
[1766029454621,0.68,123.53,123.51,0.72]
[1766029455004,0.68,123.54,123.52,0.72]
[1766029455191,8.7735442,123.56,123.52,2.01698306]
[1766029455391,8.7735442,123.56,123.53,0.72]
[1766029455616,0.68,123.55,123.53,0.72]
[1766029457813,19.21052008,123.57,123.54,0.72]
[1766029458018,0.68,123.56,123.54,0.72]
[1766029466428,0.68,123.55,123.53,9.6]
[1766029475159,8.7733999,123.56,123.54,0.72]
[1766029476741,0.68,123.55,123.53,9.6]
[1766029477237,8.7733999,123.56,123.53,9.6]
[1766029477414,8.7733999,123.56,123.53,8.88]
[1766029477614,8.7733999,123.56,123.53,9.6]
[1766029480529,8.77398317,123.55,123.53,9.6]
[1766029480716,8.77398317,123.55,123.53,8.88]
[1766029480913,8.77398317,123.55,123.52,0.72]
[1766029481632,8.09398317,123.55,123.52,0.72]
[1766029481811,0.68,123.54,123.52,0.72]
[1766029482012,8.77398317,123.55,123.52,0.72]
[1766029484211,8.09398317,123.55,123.52,0.72]
[1766029484537,11.11767296,123.57,123.54,0.69]
[1766029485430,19.21027485,123.57,123.54,0.69]
[1766029485828,8.77260189,123.57,123.54,0.69]
[1766029486739,10.10913027,123.57,123.52,8.09583481]
[1766029486952,0.68,123.56,123.52,8.78583481]
[1766029487323,0.68,123.56,123.52,8.09583481]
[1766029487524,0.68,123.56,123.53,0.69]
[1766029490139,8.77343129,123.56,123.53,0.69]
[1766029490826,0.68,123.56,123.53,0.69]
[1766029493660,10.10942538,123.57,123.53,0.69]
[1766029493951,0.68,123.56,123.53,0.69]
[1766029499965,0.68,123.56,123.53,8.78508559]
[1766029500657,0.68,123.56,123.53,8.09508559]
[1766029500852,0.68,123.56,123.54,0.69]
[1766029501833,0.68,123.56,123.52,8.09558912]
[1766029502039,0.68,123.53,123.51,0.69]
[1766029502367,2.01652838,123.55,123.52,0.69]
[1766029502368,0.68,123.55,123.52,0.69]
[1766029503350,8.77391781,123.55,123.52,0.69]
[1766029504973,10.11044619,123.55,123.52,0.69]
[1766029505149,0.68,123.54,123.51,0.69]
[1766029505343,0.68,123.53,123.5,9.08]
[1766029505666,0.68,123.53,123.51,0.69]
[1766029507876,8.77499385,123.54,123.51,0.69]
[1766029508577,0.68,123.53,123.51,0.69]
[1766029508946,8.77499385,123.54,123.51,0.69]
[1766029509146,0.68,123.53,123.51,0.69]
[1766029509666,8.77499385,123.54,123.51,0.69]
[1766029511071,0.67,123.53,123.51,0.69]
[1766029512073,8.09499385,123.54,123.51,0.69]
[1766029512278,8.76499385,123.54,123.51,0.69]
[1766029513875,8.88,123.56,123.53,0.69]
[1766029514080,9.55,123.56,123.53,0.69]
[1766029514265,0.67,123.55,123.53,0.69]
[1766029516275,8.0925791,123.57,123.53,8.0950973]
[1766029516582,0.67,123.57,123.54,0.69]
[1766029517681,19.19983031,123.58,123.55,0.69]
[1766029518181,0.67,123.57,123.55,0.69]
[1766029518777,0.67,123.57,123.54,3.15224292]
[1766029518967,0.67,123.57,123.54,0.69]
[1766029525081,0.67,123.56,123.53,8.88]
[1766029525585,0.67,123.56,123.53,9.57]
[1766029526268,8.093654,123.56,123.53,9.57]
[1766029526472,0.67,123.55,123.53,9.57]
[1766029527456,0.67,123.55,123.53,0.69]
[1766029528075,0.67,123.55,123.52,8.88]
[1766029528278,0.67,123.55,123.52,9.57]
[1766029528781,0.67,123.54,123.52,8.88]
[1766029528982,0.67,123.54,123.52,9.57]
[1766029529188,8.76393309,123.55,123.52,9.57]